bitfinex/quotes_ETHUSD_20240810
["timestamp","ask_amount","ask_price","bid_price","bid_amount"]
[1723297887230,3.8197,2618.0,2617.9,0.14114942]
[1723297887609,6.8197,2618.0,2617.9,0.14114942]
[1723297887814,7.74009,2618.0,2617.9,0.14114942]
[1723297890415,8.29009,2618.0,2617.9,0.14114942]
[1723297890608,8.29009,2618.0,2617.7,0.1276108]
[1723297890609,1.91,2617.8,2617.7,0.1276108]
[1723297891825,8.1142,2617.8,2617.7,0.1276108]
[1723297892054,11.6642,2617.8,2617.7,0.1276108]
[1723297892263,13.222659,2617.8,2617.7,0.1276108]
[1723297894267,11.312659,2617.8,2617.7,0.1276108]
[1723297894634,10.762659,2617.8,2617.7,0.1276108]
[1723297895155,11.312659,2617.8,2617.7,0.1276108]
[1723297895464,13.222659,2617.8,2617.7,0.1276108]
[1723297896021,10.762659,2617.8,2617.7,0.1276108]
[1723297896227,6.82,2617.8,2617.7,0.1276108]
[1723297896538,6.82,2617.8,2617.7,0.26442016]
[1723297896738,6.82,2617.8,2617.7,0.1276108]
[1723297896924,6.82,2617.8,2617.7,0.26442016]
[1723297897123,6.82,2617.8,2617.7,0.1276108]
[1723297897330,6.82,2617.8,2617.7,0.26442016]
[1723297897629,6.82,2617.8,2617.7,0.1276108]
[1723297897829,3.0,2617.8,2617.7,0.1276108]
[1723297898077,4.90997,2617.9,2617.7,0.26442016]
[1723297898376,3.0,2617.9,2617.7,0.26442016]
[1723297898530,1.90989,2618.0,2617.7,0.26442016]
[1723297898724,1.91,2617.8,2617.7,0.26442016]
[1723297900031,4.90993,2617.9,2617.7,0.26442016]
[1723297900294,2.98280927,2618.7,2617.8,1.90999]
[1723297900433,2.50797927,2618.7,2618.0,1.90979]
[1723297900632,1.90937,2618.7,2618.0,0.07638658]
[1723297900832,1.90937,2618.7,2618.2,2.479]
[1723297901028,1.9095,2618.5,2618.2,2.93916438]
[1723297901283,1.9095,2618.5,2618.3,0.13622997]
[1723297901582,1.9095,2618.5,2618.2,2.93916438]
[1723297901875,1.90963,2618.3,2617.9,22.15643862]
[1723297902031,1.90963,2618.3,2617.9,21.9389976]
[1723297902438,1.90951,2618.5,2617.9,21.9389976]
[1723297902640,1.90968,2618.3,2617.9,21.9389976]
[1723297902844,1.90951,2618.5,2618.0,1.90985]
[1723297903191,1.90937,2618.7,2618.0,4.10374976]
[1723297903340,1.90937,2618.7,2618.2,2.479]
[1723297904538,3.0,2618.9,2617.9,19.4599976]
[1723297904773,1.90971,2618.2,2617.9,19.4599976]
[1723297905381,1.90971,2618.2,2617.8,2.479]
[1723297905673,3.81923,2618.4,2617.8,2.479]
[1723297905874,1.9096,2618.4,2617.8,2.479]
[1723297906077,1.9096,2618.4,2617.9,2.39766784]
[1723297906564,3.0,2618.7,2618.2,4.3887]
[1723297906764,1.90931,2618.8,2618.2,4.3887]
[1723297907145,1.90931,2618.8,2618.2,2.479]
[1723297907372,1.90934,2618.7,2618.2,2.479]
[1723297907576,1.90919,2618.9,2618.3,2.1575]
[1723297907769,4.90917,2619.0,2618.3,2.1575]
[1723297908182,6.81835,2619.0,2618.3,2.1575]
[1723297908504,1.909,2619.2,2618.5,6.20587]
[1723297908790,1.909,2619.2,2618.5,4.29643]
[1723297908986,1.909,2619.2,2618.6,1.9094]
[1723297909421,2.50731491,2619.4,2618.7,1.90932]
[1723297909572,2.50731491,2619.4,2618.7,2.529903]
[1723297909909,1.90885,2619.4,2618.7,4.439193]
[1723297910311,1.90885,2619.4,2618.8,1.90925]
[1723297910520,1.90872,2619.6,2618.9,4.29612]
[1723297911487,1.90876,2619.5,2618.9,4.29612]
[1723297912358,1.90876,2619.5,2619.0,0.13496266]
[1723297912557,4.90876,2619.5,2619.0,0.13496266]
[1723297912719,1.90876,2619.5,2619.0,0.13496266]
[1723297913132,4.90876,2619.5,2619.0,0.13496266]
[1723297915533,1.90876,2619.5,2619.0,0.13496266]
[1723297916089,3.81758,2619.5,2619.0,0.13496266]
[1723297916485,1.90876,2619.5,2619.0,0.13496266]
[1723297916766,3.81757,2619.5,2619.0,0.13496266]
[1723297917432,0.925967,2619.5,2619.0,0.13496266]
[1723297917636,0.925967,2619.5,2618.8,19.4599976]
[1723297917637,1.90919,2618.9,2618.8,19.4599976]
[1723297919326,1.90905,2619.1,2618.8,19.4599976]
[1723297919552,1.90893,2619.3,2618.8,19.4599976]
[1723297920124,1.90893,2619.3,2618.7,19.4599976]
[1723297920464,1.90893,2619.3,2618.7,21.3692776]
[1723297920687,4.35087,2619.5,2618.9,1.90917]
[1723297920688,1.90877,2619.5,2618.9,1.90917]
[1723297920823,1.90877,2619.5,2619.0,2.387]
[1723297921937,3.81758,2619.5,2619.0,2.387]
[1723297922156,1.90877,2619.5,2619.0,2.387]
[1723297922965,4.90869,2619.6,2619.0,4.2961]
[1723297923266,4.90869,2619.6,2619.0,2.387]
[1723297923772,1.90882,2619.5,2619.0,2.387]
[1723297925143,3.0,2619.6,2619.0,4.2961]
[1723297925364,1.90864,2619.7,2619.0,4.2961]
[1723297925365,1.90864,2619.7,2619.0,6.96030554]
[1723297925540,1.90873,2619.6,2619.0,5.05120554]
[1723297925739,4.90873,2619.6,2619.0,5.05120554]
[1723297925949,1.90892,2619.3,2619.0,2.387]
[1723297926834,1.90876,2619.5,2619.0,2.387]
[1723297927035,6.81758,2619.5,2619.0,2.387]
[1723297927227,1.9089,2619.3,2619.1,0.13428555]
[1723297927663,4.90876,2619.5,2619.1,0.13428555]
[1723297927869,1.90876,2619.5,2619.1,0.13428555]
[1723297928747,2.4421,2620.0,2619.1,2.71423686]
[1723297929076,1.90852,2619.9,2619.3,2.3816]
[1723297929429,1.90852,2619.9,2619.3,4.2905]
[1723297929771,1.90852,2619.9,2619.4,0.13376206]
[1723297930784,3.81704,2619.9,2619.4,0.13376206]
[1723297930940,1.90852,2619.9,2619.4,0.13376206]
[1723297931769,1.90852,2619.9,2619.4,2.52218803]
[1723297932407,1.90852,2619.9,2619.4,2.59853446]
[1723297932688,1.90852,2619.9,2619.4,4.50735446]
[1723297933457,1.90852,2619.9,2619.4,4.43100803]
[1723297934159,3.0,2620.0,2619.7,2.3816]
[1723297934477,1.90829,2620.2,2619.7,2.3816]
[1723297934921,1.90829,2620.2,2619.8,0.13328173]
[1723297935187,1.90829,2620.2,2619.7,2.3816]
[1723297935386,1.90829,2620.2,2619.9,0.13315458]
[1723297935693,1.90829,2620.2,2620.0,0.13305935]
[1723297935875,4.90818,2620.3,2620.1,2.3816]
[1723297936192,1.90818,2620.3,2620.2,0.13286889]
[1723297936398,3.81642,2620.3,2620.2,0.13286889]
[1723297936582,4.498062,2620.3,2620.2,0.13286889]
[1723297936891,1.90831,2620.2,2619.7,2.3816]
[1723297937255,1.90833,2620.1,2619.7,2.3816]
[1723297937503,1.90833,2620.1,2619.6,19.4599976]
[1723297937504,1.90861,2619.7,2619.6,19.4599976]
[1723297938396,1.90861,2619.7,2619.0,1.90908]
[1723297938397,1.90876,2619.5,2619.0,21.8415976]
[1723297938620,1.90876,2619.5,2618.9,19.4599976]
[1723297938815,1.90895,2619.3,2618.9,19.4599976]
[1723297939116,1.90898,2619.2,2618.9,19.4599976]
[1723297939501,1.90895,2619.3,2618.9,19.4599976]
[1723297940715,4.90879,2619.5,2618.9,23.74423036]
[1723297940928,1.90879,2619.5,2618.9,25.65338036]
[1723297941880,1.90879,2619.5,2618.9,21.83509036]
[1723297942082,1.90895,2619.3,2618.9,21.83509036]
[1723297942336,1.90895,2619.3,2619.0,0.12966374]
[1723297942834,3.81761,2619.5,2619.0,0.12966374]
[1723297943127,1.9088,2619.5,2619.0,0.12966374]
[1723297943283,3.0,2619.6,2619.1,1.90905]
[1723297943483,1.90864,2619.7,2619.2,0.12944138]
[1723297943889,1.90864,2619.7,2619.2,19.58943898]
[1723297944880,1.9087,2619.6,2619.2,19.58943898]
[1723297945082,4.9087,2619.6,2619.2,19.58943898]
[1723297945482,1.9087,2619.6,2619.2,19.58943898]
[1723297946483,1.90864,2619.7,2619.3,2.3816]
[1723297946688,1.90864,2619.7,2619.4,0.12920493]
[1723297949822,1.90852,2619.9,2619.4,0.12920493]
[1723297951207,1.9086,2619.8,2619.4,0.12920493]
[1723297952661,3.0,2620.0,2619.4,2.03798493]
[1723297952942,3.0,2620.0,2619.5,0.44195849]
[1723297953129,3.0,2620.0,2619.6,0.1290426]
[1723297953530,1.90836,2620.1,2619.6,0.1290426]
[1723297954340,1.90836,2620.1,2619.7,2.4641]
[1723297954638,1.90818,2620.3,2619.8,0.12885209]
[1723297954837,3.81615,2620.5,2619.8,2.29666635]
[1723297955047,1.90812,2620.4,2619.8,1.9085]
[1723297955202,1.90812,2620.4,2619.9,0.12870393]
[1723297956439,1.9082,2620.3,2619.9,0.12870393]
[1723297956654,1.90839,2620.0,2619.9,0.12870393]
[1723297956817,1.90833,2620.1,2619.4,4.3729]
[1723297957017,1.90839,2620.0,2619.9,0.12863691]
[1723297957223,1.90839,2620.0,2619.4,4.3729]
[1723297957405,1.90839,2620.0,2619.9,0.12863691]
[1723297957608,1.90847,2619.9,2619.4,2.4641]
[1723297957802,1.90839,2620.0,2619.9,0.12863691]
[1723297958045,1.90865,2619.7,2619.2,2.4641]
[1723297958407,1.90865,2619.7,2619.4,0.12911321]
[1723297959347,1.90865,2619.7,2619.4,0.08924454]
[1723297959540,1.90865,2619.7,2619.4,0.12768898]
[1723297960440,1.9085,2619.9,2619.4,0.12768898]
[1723297960807,1.9085,2619.9,2619.4,2.03650898]
[1723297961140,1.9085,2619.9,2619.5,2.4641]
[1723297961444,3.0,2620.0,2619.6,0.12773129]
[1723297961811,1.90836,2620.1,2619.6,0.12773129]
[1723297962748,1.90836,2620.1,2619.6,2.03641129]
[1723297962909,1.90836,2620.1,2619.7,0.45005113]
[1723297963104,1.90821,2620.3,2619.8,2.4641]
[1723297963411,3.81644,2620.3,2619.8,2.59151377]
[1723297963819,1.90821,2620.3,2619.8,2.59151377]
[1723297964218,1.90821,2620.3,2619.8,5.18592626]
[1723297964819,1.90821,2620.3,2619.8,3.27739626]
[1723297965651,1.90806,2620.5,2619.8,5.18588626]
[1723297965828,1.90806,2620.5,2619.9,1.90844]
[1723297966158,1.90806,2620.5,2620.0,0.12713863]
[1723297966663,3.81614,2620.5,2620.0,0.12713863]
[1723297966823,1.90806,2620.5,2620.0,0.12713863]
[1723297967543,1.90823,2620.3,2620.0,0.12713863]
[1723297967745,1.90823,2620.3,2619.8,2.4641]
[1723297967923,1.90823,2620.3,2619.9,0.12716687]
[1723297968519,1.90806,2620.5,2619.9,2.03562687]
[1723297969156,4.90798,2620.6,2619.9,2.03562687]
[1723297969355,4.90798,2620.6,2620.0,0.44997269]
[1723297969670,4.90798,2620.6,2620.1,0.1269905]
[1723297970236,3.0,2620.6,2620.2,2.2664]
[1723297970439,1.90801,2620.6,2620.3,0.12680006]
[1723297970767,3.81584,2620.7,2620.2,2.2664]
[1723297971070,1.90803,2620.5,2620.4,0.12670485]
[1723297971262,1.9081,2620.4,2620.3,0.12680006]
[1723297971461,1.9081,2620.4,2620.2,2.2664]
[1723297972040,1.90797,2620.6,2620.2,2.2664]
[1723297972041,1.90808,2620.5,2620.2,2.2664]
[1723297972506,1.9081,2620.4,2620.3,0.12680006]
[1723297972673,3.8162,2620.4,2620.3,0.12680006]
[1723297972875,3.8162,2620.4,2619.9,2.2664]
[1723297972876,1.9081,2620.4,2619.9,2.2664]
[1723297973174,1.9081,2620.4,2620.0,0.12708573]
[1723297975246,1.90813,2620.4,2620.0,0.12708573]
[1723297975574,1.90829,2620.2,2620.0,0.12708573]
[1723297976358,1.90814,2620.4,2620.0,0.12708573]
[1723297976359,3.8163,2620.4,2620.0,0.12708573]
[1723297976579,1.90817,2620.3,2620.0,0.12708573]
[1723297977391,1.90814,2620.4,2620.0,0.12708573]
[1723297977897,1.90799,2620.6,2620.0,0.12708573]
[1723297978202,1.90799,2620.6,2620.0,0.7481203]
[1723297978401,1.90799,2620.6,2620.0,2.6564703]
[1723297978758,1.90799,2620.6,2620.1,4.17471]
[1723297978959,1.90799,2620.6,2620.2,0.12674715]
[1723297980301,1.90783,2620.8,2620.3,2.2664]
[1723297980593,1.90783,2620.8,2620.4,0.36581854]
[1723297980802,1.90758,2621.2,2620.5,4.17441]
[1723297981117,1.9074,2621.4,2620.8,2.2664]
[1723297981602,1.90737,2621.4,2620.9,2.03370026]
[1723297981767,0.25053196,2621.4,2620.9,2.03370026]
[1723297981964,1.90728,2621.6,2620.9,2.03370026]
[1723297982163,1.90728,2621.6,2621.1,2.2664]
[1723297982374,1.90728,2621.6,2621.2,0.12565427]
[1723297983320,1.9071,2621.8,2621.2,2.03312427]
[1723297983488,2.36,2622.1,2621.4,1.90736]
[1723297983489,1.90687,2622.1,2621.4,1.90736]
[1723297983696,1.90681,2622.2,2621.5,2.2664]
[1723297983883,1.90688,2622.1,2621.5,2.39163844]
[1723297984065,1.90701,2622.0,2621.5,2.82153428]
[1723297984266,3.81446,2621.6,2621.5,0.12523844]
[1723297984597,2.36,2621.7,2621.0,2.2664]
[1723297984598,1.90748,2621.3,2621.0,2.2664]
[1723297984901,1.90748,2621.3,2620.7,2.2664]
[1723297985219,1.90759,2621.1,2620.7,2.2664]
[1723297985508,1.90748,2621.3,2620.7,4.17428]
[1723297985696,1.90748,2621.3,2620.8,0.65362029]
[1723297985996,1.90733,2621.5,2620.8,2.56141029]
[1723297986570,1.90733,2621.5,2620.9,2.2664]
[1723297987183,1.90733,2621.5,2620.9,4.17407]
[1723297987533,1.90733,2621.5,2621.0,0.1256014]
[1723297988070,1.90733,2621.5,2621.0,0.62094357]
[1723297989331,1.90733,2621.5,2621.0,0.5678265]
[1723297989609,1.9074,2621.4,2621.0,0.61907784]
[1723297989919,1.90733,2621.5,2621.0,0.61907784]
[1723297990232,1.90749,2621.3,2621.0,0.12373567]
[1723297993975,1.90733,2621.5,2621.0,0.12373567]
[1723297994579,1.90733,2621.5,2621.0,19.58373327]
[1723297995584,4.17999,2621.7,2621.0,21.49138327]
[1723297995782,1.90719,2621.7,2621.2,2.2685]
[1723297995985,4.90704,2621.9,2621.2,4.17601]
[1723297995986,3.0,2621.8,2621.2,4.17601]
[1723297996185,3.0,2621.8,2621.3,0.12319284]
[1723297996186,1.90713,2621.8,2621.3,0.12319284]
[1723297996386,1.90713,2621.8,2621.3,0.79071196]
[1723297996615,1.90713,2621.8,2621.3,0.66751912]
[1723297996812,3.81427,2621.8,2621.4,0.12310475]
[1723297997379,1.90713,2621.8,2621.4,0.12310475]
[1723297997579,3.81427,2621.8,2621.4,0.12310475]
[1723297997810,1.90713,2621.8,2621.4,0.12310475]
[1723297998673,1.90728,2621.6,2621.4,0.12310475]
[1723297998883,3.8146,2621.5,2621.4,0.12310475]
[1723297999086,3.8146,2621.5,2621.2,19.4599976]
[1723297999087,1.90745,2621.3,2621.2,19.4599976]
[1723297999709,3.8149,2621.3,2621.2,19.4599976]
[1723298000487,1.9078,2620.9,2620.6,7.49]
[1723298000688,1.9079,2620.7,2620.5,19.4599976]
[1723298001920,1.90779,2620.9,2620.5,19.4599976]
[1723298002564,3.0,2621.0,2620.6,0.11970313]
[1723298002826,1.90763,2621.1,2620.6,2.38820313]
[1723298003196,2.2728,2621.0,2620.6,0.11970313]
[1723298003427,1.90788,2620.7,2620.6,0.11970313]
[1723298004588,1.90783,2620.8,2620.6,0.11970313]
[1723298005905,2.2728,2621.0,2620.6,0.11970313]
[1723298006096,6.08856,2620.7,2620.6,0.11970313]
[1723298006445,2.2728,2620.7,2619.8,19.8]
[1723298006591,3.81699,2619.9,2619.4,19.4599976]
[1723298006791,1.90854,2619.8,2619.4,19.4599976]
[1723298007017,1.90854,2619.8,2619.4,21.82374436]
[1723298007491,1.9083,2620.2,2619.5,2.3638]
[1723298007704,1.9083,2620.2,2619.5,4.27248]
[1723298008021,1.9083,2620.2,2619.6,2.60962244]
[1723298008223,1.90855,2619.8,2619.4,19.4599976]
[1723298009227,1.90842,2620.0,2619.4,19.4599976]
[1723298009413,1.90833,2620.1,2619.4,19.4599976]
[1723298009594,3.0,2620.1,2619.5,1.90875]
[1723298010521,3.0,2620.1,2619.5,1.94153455]
[1723298010723,3.81627,2620.4,2619.5,1.94153455]
[1723298010724,1.90819,2620.3,2619.7,1.9086]
[1723298010923,4.90819,2620.3,2619.7,4.2724]
[1723298011826,3.0,2620.3,2619.8,1.94126052]
[1723298012031,3.0,2620.3,2620.0,1.90837]
[1723298012231,1.90785,2620.8,2620.1,1.90827]
[1723298013010,1.90785,2620.8,2620.2,4.27205]
[1723298013195,1.90785,2620.8,2620.3,1.90817]
[1723298013401,3.81541,2621.0,2620.3,1.90817]
[1723298013602,1.90774,2620.9,2620.3,1.90817]
[1723298014029,1.90782,2620.8,2620.2,2.3638]
[1723298014838,3.0,2620.9,2620.3,1.90813]
[1723298015038,4.90779,2620.9,2620.3,1.90813]
[1723298015362,1.90769,2621.0,2620.3,4.47978204]
[1723298015666,1.90769,2621.0,2620.3,4.55601433]
[1723298016526,1.90774,2620.9,2620.3,4.55601433]
[1723298016864,1.90796,2620.6,2620.3,2.57165204]
[1723298017065,1.90796,2620.6,2620.1,19.4599976]
[1723298017276,1.90815,2620.4,2620.1,19.4599976]
[1723298017477,1.90815,2620.4,2619.7,1.90859]
[1723298017478,1.90815,2620.4,2620.2,0.11682114]
[1723298017767,1.90815,2620.4,2619.8,19.4599976]
[1723298018066,1.90815,2620.4,2619.9,0.11713129]
[1723298018427,3.0,2620.5,2619.9,0.11713129]
[1723298018624,4.90798,2620.6,2620.0,2.3638]
[1723298018845,1.90798,2620.6,2620.0,2.3638]
[1723298019173,1.90798,2620.6,2620.1,0.11694432]
[1723298019369,2.589562,2620.6,2620.1,0.11694432]
[1723298019540,3.0,2620.5,2620.1,0.11694432]
[1723298019864,4.39779,2621.0,2620.1,0.11694432]
[1723298020027,1.90769,2621.0,2620.3,1.90813]
[1723298020229,1.90754,2621.2,2620.5,1.90798]
[1723298020429,3.81513,2621.2,2620.5,1.90798]
[1723298020629,3.81513,2621.2,2620.6,0.11652768]
[1723298020630,1.9076,2621.1,2620.6,0.11652768]
[1723298020927,1.90754,2621.2,2620.6,0.11652768]
[1723298021164,1.90754,2621.2,2620.6,0.52837893]
[1723298021536,1.90754,2621.2,2620.6,2.43631893]
[1723298021739,3.0,2621.3,2620.7,1.90788]
[1723298021979,1.90731,2621.5,2620.9,1.90771]
[1723298022331,1.90731,2621.5,2621.0,0.11602467]
[1723298023459,4.90731,2621.5,2621.0,0.11602467]
[1723298025635,4.9073,2621.5,2621.0,0.11602467]
[1723298026167,4.90711,2621.8,2621.0,0.75318246]
[1723298026330,1.90711,2621.8,2621.0,0.11602467]
[1723298026533,1.90711,2621.8,2621.2,1.90751]
[1723298026728,1.9072,2621.7,2621.0,2.02362467]
[1723298026966,1.9072,2621.7,2621.0,2.34634247]
[1723298027267,1.9072,2621.7,2621.1,0.11575833]
[1723298027473,1.90711,2621.8,2621.1,2.02329833]
[1723298027768,1.90711,2621.8,2621.2,1.90749]
[1723298028281,1.90711,2621.8,2621.3,0.11556803]
[1723298028436,1.90711,2621.8,2621.4,2.4544]
[1723298028855,1.90711,2621.8,2621.5,0.11507735]
[1723298029060,1.90717,2621.7,2621.5,0.11507735]
[1723298029569,1.90717,2621.7,2621.1,23.8219876]
[1723298029570,2.588518,2621.8,2621.2,1.90751]
[1723298029867,1.90711,2621.8,2621.3,0.11525015]
[1723298030070,1.90716,2621.7,2621.3,0.11525015]
[1723298030371,1.90716,2621.7,2621.1,23.8219676]
[1723298030742,1.90711,2621.8,2621.2,1.90748]
[1723298030938,1.90711,2621.8,2621.2,4.52430201]
[1723298031174,3.81425,2621.8,2621.3,0.11525015]
[1723298031468,1.90711,2621.8,2621.2,6.43177201]
[1723298031649,1.90711,2621.8,2621.4,0.11514454]
[1723298031851,1.90711,2621.8,2621.2,4.52429201]
[1723298031852,1.90711,2621.8,2621.3,0.11523968]
[1723298032049,1.90692,2622.1,2621.5,0.11504941]
[1723298032258,1.90692,2622.1,2621.4,2.02245454]
[1723298032616,1.90692,2622.1,2621.6,2.4544]
[1723298032970,1.90692,2622.1,2621.7,0.11482774]
[1723298033174,1.90678,2622.3,2621.7,21.5582591]
[1723298033390,0.381346,2622.2,2621.7,21.5582591]
[1723298033540,4.90678,2622.3,2621.7,21.5582591]
[1723298033876,1.90668,2622.4,2621.7,21.5582591]
[1723298033877,1.90668,2622.4,2621.7,21.5582091]
[1723298034074,1.90668,2622.4,2621.8,1.90704]
[1723298034485,1.90668,2622.4,2621.9,0.1146096]
[1723298035550,3.81339,2622.4,2621.9,0.1146096]
[1723298035758,1.90673,2622.3,2621.9,0.1146096]
[1723298036451,3.0,2622.5,2622.0,2.53067685]
[1723298036691,1.90655,2622.6,2622.0,2.53067685]
[1723298036892,1.90655,2622.6,2622.1,0.11424486]
[1723298038065,3.81311,2622.6,2622.1,0.11424486]
[1723298038274,1.90679,2622.2,2622.1,0.11424486]
[1723298038599,6.13988,2622.2,2621.5,1.90729]
[1723298038749,1.90689,2622.1,2621.5,1.90729]
[1723298039083,4.90689,2622.1,2621.6,0.11071602]
[1723298039287,1.90698,2622.0,2621.6,0.11071602]
[1723298039696,1.90698,2622.0,2621.4,1.90732]
[1723298039852,1.90698,2622.0,2621.7,0.11067305]
[1723298040052,1.90698,2622.0,2621.4,3.28324]
[1723298040253,1.90698,2622.0,2621.8,0.11057794]
[1723298040567,1.90698,2622.0,2621.9,0.11048284]
[1723298040765,1.90698,2622.0,2621.4,3.28324]
[1723298040954,1.90698,2622.0,2621.5,0.11086328]
[1723298041578,4.90689,2622.1,2621.5,0.11086328]
[1723298041791,4.90689,2622.1,2621.5,0.69571261]
[1723298042073,1.90689,2622.1,2621.5,2.60301261]
[1723298043851,1.90689,2622.1,2621.5,4.51031261]
[1723298044057,1.90689,2622.1,2621.5,2.60301261]
[1723298045892,4.495174,2622.1,2621.5,2.01816328]
[1723298046150,1.90694,2622.0,2621.5,2.01816328]
[1723298047006,2.3327,2621.9,2621.5,0.11086328]
[1723298047152,3.81451,2621.6,2621.2,7.49]
[1723298047354,1.90723,2621.6,2621.1,19.4599976]
[1723298047652,1.90723,2621.6,2621.2,0.10771838]
[1723298048689,1.9071,2621.8,2621.2,2.25525398]
[1723298048978,1.9071,2621.8,2621.2,4.72175398]
[1723298049347,1.9071,2621.8,2621.2,6.62926398]
[1723298049551,3.81425,2621.8,2621.2,4.72175398]
[1723298050094,1.9071,2621.8,2621.2,4.72175398]
[1723298050268,4.90697,2622.0,2621.3,6.61446016]
[1723298050594,1.90697,2622.0,2621.4,1.90736]
[1723298050765,1.90697,2622.0,2621.4,2.01499544]
[1723298050968,1.90697,2622.0,2621.5,0.67220656]
[1723298051432,1.90697,2622.0,2621.6,0.10744519]
[1723298054236,1.90707,2621.9,2621.6,0.10744519]
[1723298054725,1.90707,2621.9,2621.4,19.4599976]
[1723298054930,1.90697,2622.0,2621.7,0.10730852]
[1723298055089,1.90697,2622.0,2621.4,19.4599976]
[1723298055434,3.81397,2622.0,2621.4,22.31409438]
[1723298055593,3.0,2621.9,2621.5,0.10749876]
[1723298055993,3.81396,2622.0,2621.5,0.10749876]
[1723298056225,3.0,2621.9,2621.5,0.10749876]
[1723298057017,4.90701,2621.9,2621.5,0.10749876]
[1723298057224,1.90713,2621.8,2621.5,0.10749876]
[1723298057529,1.90737,2621.4,2621.3,19.4599976]
[1723298057714,3.81474,2621.4,2621.3,19.4599976]
[1723298058509,1.90764,2621.1,2620.6,21.9264976]
[1723298060519,3.81528,2621.1,2620.6,21.9264976]
[1723298060706,1.90764,2621.1,2620.6,21.9264976]
[1723298062206,1.90764,2621.1,2620.7,0.10493883]
[1723298062748,1.90754,2621.2,2620.7,0.10493883]
[1723298064852,1.90764,2621.1,2620.7,0.10493883]
[1723298065157,2.3327,2620.8,2620.7,0.10493883]
[1723298065319,6.14832,2620.8,2620.7,0.10493883]
[1723298066131,1.90803,2620.6,2620.1,19.4599976]
[1723298066334,1.90805,2620.5,2619.9,28.8584176]
[1723298066509,1.90789,2620.7,2620.0,1.377334]
[1723298066720,1.9078,2620.9,2620.3,1.90813]
[1723298066914,4.9078,2620.9,2620.3,1.90813]
[1723298067147,1.90781,2620.8,2620.3,2.331683]
[1723298069912,3.0,2620.9,2620.5,1.90801]
[1723298070265,2.4244,2621.0,2620.5,1.90801]
[1723298070635,1.90764,2621.1,2620.5,4.27797906]
[1723298070841,4.90764,2621.1,2620.5,4.27797906]
[1723298071859,3.0,2621.1,2620.6,1.90795]
[1723298072027,4.90758,2621.2,2620.6,1.90795]
[1723298074154,4.90758,2621.2,2620.6,24.16528027]
[1723298074680,3.0,2621.2,2620.7,1.90783]
[1723298074828,5.4244,2621.3,2620.7,1.90783]
[1723298075166,7.33185,2621.3,2620.7,1.90783]
[1723298075365,4.90745,2621.3,2620.7,6.65571503]
[1723298075573,1.90745,2621.3,2620.8,1.90779]
[1723298075864,1.90745,2621.3,2620.7,4.74788503]
[1723298076476,1.90731,2621.5,2620.9,1.90772]
[1723298076650,1.90731,2621.5,2621.0,0.190772]
[1723298077475,1.90731,2621.5,2621.1,0.10493769]
[1723298078103,4.90731,2621.5,2621.1,0.10493769]
[1723298079365,1.90749,2621.3,2621.1,0.01196406]
[1723298079612,1.90749,2621.3,2621.1,0.10174342]
[1723298079762,3.0,2621.5,2621.0,4.23502]
[1723298079965,3.0,2621.5,2621.2,0.10174342]
[1723298080162,1.90721,2621.7,2621.2,1.9075]
[1723298080394,1.90721,2621.7,2621.3,0.10164482]
[1723298080790,1.90721,2621.7,2621.2,1.9075]
[1723298081099,1.90721,2621.7,2621.3,0.29239482]
[1723298081897,1.90721,2621.7,2621.3,0.19075]
[1723298082202,1.90721,2621.7,2621.4,0.10129088]
[1723298082698,3.0,2621.8,2621.4,0.10129088]
[1723298086302,2.4244,2621.9,2621.4,0.10129088]
[1723298087537,4.33141,2621.9,2621.4,0.10129088]
[1723298087833,3.0,2621.8,2621.4,0.10129088]
[1723298088835,4.90699,2622.0,2621.4,4.45591088]
[1723298089058,4.90699,2622.0,2621.4,2.54859088]
[1723298089336,4.89883607,2622.0,2621.4,3.01326497]
[1723298089700,1.90701,2621.9,2621.4,3.01326497]
[1723298090610,1.90701,2621.9,2621.4,4.92061497]
[1723298091009,1.90701,2621.9,2621.4,3.01326497]
[1723298091220,3.81408,2621.9,2621.4,0.10129088]
[1723298091545,3.0,2621.8,2621.2,6.26222]
[1723298091710,1.90709,2621.8,2621.5,0.10046355]
[1723298091916,3.0,2621.8,2621.2,4.35475]
[1723298092122,3.0,2621.8,2621.6,0.10036843]
[1723298092435,1.90708,2621.8,2621.7,0.10027331]
[1723298092645,4.90708,2621.8,2621.2,1.90745]
[1723298092870,1.90727,2621.6,2621.3,0.10065382]
[1723298093082,1.90727,2621.6,2621.0,4.35492]
[1723298093243,1.90727,2621.6,2621.1,0.10073373]
[1723298093771,3.81455,2621.6,2621.1,0.10073373]
[1723298095642,3.81455,2621.6,2621.2,19.4599976]
[1723298095865,3.81455,2621.6,2621.3,0.10058137]
[1723298096173,1.9073,2621.5,2621.2,19.4599976]
[1723298096473,1.90737,2621.4,2621.3,0.10061586]
[1723298096680,1.90737,2621.4,2621.2,19.4599976]
[1723298096894,1.90737,2621.4,2621.3,0.10061586]
[1723298097247,1.90737,2621.4,2621.2,19.4599976]
[1723298097450,1.90737,2621.4,2621.3,0.10061586]
[1723298097776,1.90737,2621.4,2621.2,19.4599976]
[1723298097957,1.90737,2621.4,2621.3,0.10061586]
[1723298098280,1.90737,2621.4,2621.2,19.4599976]
[1723298098581,3.0,2621.5,2621.3,0.10061586]
[1723298098755,4.90727,2621.6,2621.3,0.10061586]
[1723298099079,6.81455,2621.6,2621.4,0.10055867]
[1723298099283,6.81455,2621.6,2621.2,19.4599976]
[1723298099458,6.81455,2621.6,2621.3,0.10065381]
[1723298099658,6.81455,2621.6,2621.2,19.4599976]
[1723298099868,6.81455,2621.6,2621.3,0.10065381]
[1723298100045,6.81455,2621.6,2621.2,19.4599976]
[1723298100247,6.81455,2621.6,2621.3,0.10065381]
[1723298100458,6.81455,2621.6,2621.2,19.4599976]
[1723298100699,6.81455,2621.6,2621.3,0.10065381]
[1723298101073,6.81455,2621.6,2621.2,19.4599976]
[1723298101262,1.90732,2621.5,2621.3,0.10065381]